Cogmind - Beta 14 @@@ ROGUE MODE // 2024.08.15 @ 16:20:06 Player: H3-RMN Result: Destroyed by AY-QSM(E) with Heavy Battle Rifle Performance ------------- Evolutions (0) 0 Regions Visited (5) 1000 Robots Destroyed (37) 185 Value Destroyed (866) 866 Prototype IDs (17) 340 Alien Tech Used (0) 0 Bonus (411) 411 TOTAL SCORE: 2802 Bonus ------- Follower Combat Kills 111 Registered with UFD 300 Cogmind --------- Core Integrity 0/250 Matter 300/300 Energy 290/290 System Corruption 0% Temperature Cool (0) Movement Rolling (135) Ox3 Location -9/Scraptown Parts ------- > --- POWER (1) -------- Improved Deuterium Engine > --- PROPULSION (2) --- Armored Wheel Armored Wheel > --- UTILITY (2) ------ Huge Storage Unit > --- WEAPON (2) ------- Datajack > --- INVENTORY (25) --- Improved Treads Spiked Treads Armored Wheel Armored Wheel Large Storage Unit Improved Sensor Array Active Sensor Suite Advanced Targeting Computer Hacking Suite Hacking Suite Authchip [Device] Trap Extractor (3/4 Vortex) Scrapoid Pod Riot Gun Assault Rifle Bolt Gun Mini Grenade Launcher Plasma Cutter CPS Tube (2) Multitool Makeshift Hammer Botcube Peak State ------------ > --- POWER ------------ Improved Deuterium Engine > --- PROPULSION ------- Armored Wheel Armored Wheel > --- UTILITY ---------- Huge Storage Unit Medium Armor Plating > --- WEAPON ----------- Advanced Assault Cannon Datajack > --- INVENTORY -------- Improved Treads Spiked Treads Armored Wheel Armored Wheel Large Storage Unit Improved Sensor Array Active Sensor Suite Advanced Targeting Computer Hacking Suite Hacking Suite Authchip [Device] Trap Extractor Scrapoid Pod Riot Gun Assault Rifle Bolt Gun Mini Grenade Launcher Plasma Cutter CPS Tube Multitool Makeshift Hammer Botcube [Rating: 25] Favorites ----------- Power Subdweller Power Source Engine Subdweller Power Source Propulsion Armored Wheel Treads Light Treads Wheel Armored Wheel Utility Huge Storage Unit Device Structural Scanner Storage Huge Storage Unit Hackware Makeshift System Shield Protection Medium Armor Plating Weapon Subdweller Laser Energy Gun Subdweller Laser Ballistic Gun Assault Rifle Ballistic Cannon Light Cannon Impact Weapon Makeshift Hammer Special Melee Weapon Datajack Build | -11 -10 -10 -10 -9 -9 ------- Run | Yrd Mat Min Sub Rec Scr Slots Evolved . | . . . . . . Power . | . . . . . . Propulsion . | . . . . . . Utility . | . . . . . . Weapon . | . . . . . . Parts Attached 67 | 7 16 2 20 10 12 Power 6 | 1 1 . 2 1 1 Engine 6 | 1 1 . 2 1 1 Core . | . . . . . . Reactor . | . . . . . . Propulsion 18 | 2 3 1 5 4 3 Treads 10 | 1 2 . 5 2 . Leg . | . . . . . . Wheel 8 | 1 1 1 . 2 3 Hover . | . . . . . . Flight . | . . . . . . Utility 18 | 2 7 1 2 2 4 Device 6 | 1 2 . . . 3 Storage 3 | 1 1 1 . . . Processor . | . . . . . . Hackware 1 | . . . . 1 . Protection 8 | . 4 . 2 1 1 Artifact . | . . . . . . Weapon 25 | 2 5 . 11 3 4 Energy Gun 12 | 1 2 . 7 1 1 Energy Cannon . | . . . . . . Ballistic Gun 8 | 1 1 . 3 2 1 Ballistic Cannon 3 | . 2 . . . 1 Launcher . | . . . . . . Special Weapon . | . . . . . . Impact Weapon 1 | . . . 1 . . Slashing Weapon . | . . . . . . Piercing Weapon . | . . . . . . Special Melee Weapon 1 | . . . . . 1 Unidentified Prototypes . | . . . . . . Parts Lost 11 | . 1 . 7 1 2 Power . | . . . . . . Propulsion 3 | . . . 3 . . Utility 4 | . 1 . 2 . 1 Weapon 4 | . . . 2 1 1 Highest Loss Streak 3 | . 1 . 3 1 2 To Critical Strikes . | . . . . . . Average Slot Usage (%) 99 | . 98 100 99 99 99 Engine 13 | . 13 14 14 14 13 Treads 15 | . 14 11 21 20 . Wheel 12 | . 14 16 6 7 27 Device 3 | . 3 . . . 12 Storage 14 | . 14 14 14 14 14 Protection 10 | . 10 14 14 10 1 Energy Gun 10 | . 13 14 11 15 1 Ballistic Gun 8 | . 12 . 6 8 13 Ballistic Cannon 3 | . 1 14 5 . . Impact Weapon 2 | . . . 4 3 . Special Melee Weapon 2 | . . . . . 12 Peak Build Rating 25 | 7 11 12 18 21 25 Average Rating 15 | 4 9 11 15 16 17 On Entrance 10 | . 7 11 12 18 16 Naked Turns . | . . . . . . Heaviest Build 104 | 13 35 95 99 99 104 Greatest Support 40 | 16 20 24 40 40 40 Greatest Overweight (x) 8 | . 2 7 8 3 7 Average Overweight (x) 2 | . 1 5 3 2 3 Largest Inventory Capacity 25 | 8 15 25 25 25 25 Average Capacity 23 | 7 11 24 25 25 25 Most Carried 25 | 5 15 16 25 25 25 Average Carried 20 | 2 9 15 20 24 24 Final Capacity 25 | 8 15 25 25 25 25 Final Carried 25 | 5 14 16 23 25 25 Class Distribution -------------------- 63% | Mutant 28% | Commander-Mutant 7% | Derelict-Mutant Dominant Class ---------------- Mutant | -10/Materials Mutant | -10/Mines Mutant | -10/Subcaves Commander-Mutant | -9/Recycling Commander-Mutant | -9/Scraptown Resources | -11 -10 -10 -10 -9 -9 ----------- Run | Yrd Mat Min Sub Rec Scr Matter Collected 1371 | 276 236 120 485 128 126 Remotely . | . . . . . . Salvage Created 1292 | 64 433 33 547 215 . Parts 79 | 5 37 4 24 9 . Haulers Intercepted 2 | . 2 . . . . Recyclers Shooed 1 | . . . . 1 . Parts Field Recycled . | . . . . . . Retrieved Matter . | . . . . . . Parts Self-Destructed 15 | . . . 15 . . Prevented . | . . . . . . Kills | -11 -10 -10 -10 -9 -9 ------- Run | Yrd Mat Min Sub Rec Scr Combat Hostiles Destroyed 32 | . 13 4 9 6 . Guns 27 | . 13 1 7 6 . Cannons 3 | . . 1 2 . . AOE 2 | . . 2 . . . Classes Destroyed 11 | 2 5 1 2 1 . Tunneler 1 | 1 . . . . . Hauler 2 | . 2 . . . . Recycler 1 | 1 . . . . . Operator 1 | . 1 . . . . Watcher 1 | . 1 . . . . Swarmer 14 | . 9 3 . 2 . Grunt 6 | . 4 . . 2 . Sentry 2 | . . . . 2 . Cobbler 1 | . . . 1 . . Subdweller 9 | . . . 9 . . Assembled 1 | . . 1 . . . Best Kill Streak 5 | 2 5 3 2 3 . Combat Bots Only 5 | . 5 3 2 3 . Max Kills in Single Turn 2 | 1 1 2 1 1 . Gunslinging . | . . . . . . Exploded 2 | . . 2 . . . Melee . | . . . . . . Uniques/NPCs Destroyed . | . . . . . . Combat | -11 -10 -10 -10 -9 -9 -------- Run | Yrd Mat Min Sub Rec Scr Hostile Shots Fired 175 | . 51 10 60 27 27 Missed 50 | . 10 5 20 7 8 Damage Taken 2009 | . 396 57 1045 235 276 Core 258 | . 69 22 90 46 31 Absorbed by Shields 14 | . . . . . 14 Core Remaining (%) 100 | 100 . . . . . Volleys Fired 258 | 2 52 6 182 15 1 Largest 2 | 2 2 2 2 2 1 Hottest 110 | 70 85 85 95 110 48 Shots Fired 385 | 4 104 11 238 27 1 Gun 355 | 4 103 5 216 27 . Cannon 30 | . 1 6 22 . 1 Launcher . | . . . . . . Special . | . . . . . . Kinetic 185 | 2 52 6 113 11 1 Thermal 197 | 2 52 5 123 15 . Explosive . | . . . . . . Electromagnetic 3 | . . . 2 1 . Robot Hit Streak 19 | 3 19 3 12 12 . Robot Miss Streak 3 | . 3 2 3 1 . Penetration Max . | . . . . . . Secondary Targets 2 | . 1 . . 1 . Max Gunslinging Chain 1 | . 1 . . 1 . Shots Hit Robots 192 | 3 67 5 96 20 1 Core Hits 69 | 3 26 4 27 9 . Critical Kills . | . . . . . . Critical Parts Destroyed 1 | . . . . 1 . Critical Strikes 9 | . 6 . 2 1 . Burn 7 | . 6 . 1 . . Destroy 1 | . . . . 1 . Blast 1 | . . . 1 . . Melee Attacks 13 | . . . 12 . 1 Impact 12 | . . . 12 . . Slashing . | . . . . . . Piercing . | . . . . . . Sneak Attacks 1 | . . . . . 1 Combat Hostiles . | . . . . . . Follow-up Attacks . | . . . . . . Damage Inflicted 3209 | 40 874 219 1732 344 . Guns 2771 | 40 854 38 1495 344 . Cannons 295 | . 20 38 237 . . Explosions 143 | . . 143 . . . Melee . | . . . . . . Ramming . | . . . . . . Kinetic 1618 | 15 388 38 1061 116 . Thermal 1545 | 25 486 181 642 211 . Explosive . | . . . . . . Electromagnetic 46 | . . . 29 17 . Impact . | . . . . . . Slashing . | . . . . . . Piercing . | . . . . . . Highest Corruption . | . . . . . . Average Corruption . | . . . . . . Corruption Purged . | . . . . . . Corruption Blocked . | . . . . . . Overload Shots . | . . . . . . Overflow Damage 37 | . . 37 . . . Projectiles . | . . . . . . Explosions 37 | . . 37 . . . Melee . | . . . . . . Knockbacks 3 | . . 1 2 . . Impact . | . . . . . . Kinetic 3 | . . 1 2 . . Secondary . | . . . . . . Self-Inflicted Damage . | . . . . . . Shots . | . . . . . . Rammed . | . . . . . . Targets Rammed . | . . . . . . Kicked . | . . . . . . Crushed . | . . . . . . Highest Temperature 99 | . 93 99 16 99 27 Average Temperature 26 | . 16 46 9 42 19 Received Heat Transfer 442 | . 105 . 240 60 37 Siege Activations . | . . . . . . Robots Corrupted . | . . . . . . Combat Hostiles . | . . . . . . Parts Fried . | . . . . . . Impact Corruptions . | . . . . . . Robots Melted . | . . . . . . Combat Hostiles . | . . . . . . Parts Melted 5 | . 4 . 1 . . Heat Transferred 3455 | 74 1850 261 1020 250 . Parts Sabotaged . | . . . . . . Parts Stolen . | . . . . . . Parts Stripped . | . . . . . . Power Chain Reactions . | . . . . . . Alert | -11 -10 -10 -10 -9 -9 ------- Run | Yrd Mat Min Sub Rec Scr Peak Influence 348 | 10 348 184 . 260 . Initial 76 | . 6 76 . . . Average 117 | 2 196 79 . 78 . Maximum Alert Level 1 | . 1 . . 1 . Low Security (%) 83 | 100 69 100 . 88 . Level 1 16 | . 30 . . 11 . Level 2 . | . . . . . . Level 3 . | . . . . . . Level 4 . | . . . . . . Level 5 . | . . . . . . High Security . | . . . . . . Max Security . | . . . . . . Squads Dispatched 2 | . 2 . . . . Investigation 2 | . 2 . . . . Extermination . | . . . . . . Reinforcement . | . . . . . . Assault . | . . . . . . Garrison . | . . . . . . Intercept . | . . . . . . Searches Triggered . | . . . . . . Construction Impeded . | . . . . . . Haulers Reinforced . | . . . . . . Active Scanning Responses . | . . . . . . Cargo Convoy Interrupts . | . . . . . . Stealth | -11 -10 -10 -10 -9 -9 --------- Run | Yrd Mat Min Sub Rec Scr Distress Signals 2 | . 2 . . . . Communications Jammed . | . . . . . . Distress Signals . | . . . . . . Times Spotted 68 | . 30 4 17 8 9 Peak Tracking Total 10 | . 7 3 6 4 10 Tactical Retreats 3 | . 3 . . . . Traps | -11 -10 -10 -10 -9 -9 ------- Run | Yrd Mat Min Sub Rec Scr Traps Triggered 5 | . 4 . 1 . . Indirectly . | . . . . . . Trap Hack Attempts . | . . . . . . Triggered . | . . . . . . Disarmed . | . . . . . . Reprogrammed . | . . . . . . Reused . | . . . . . . Traps Extracted . | . . . . . . Installed . | . . . . . . Triggered . | . . . . . . Most Traps Carried 3 | . . . . . 3 Machines | -11 -10 -10 -10 -9 -9 ---------- Run | Yrd Mat Min Sub Rec Scr Machines Disabled 4 | . . 1 . . 3 Max in Single Turn 1 | . . 1 . . 1 Machines Repaired . | . . . . . . Machines Dismantled . | . . . . . . Machines Sabotaged . | . . . . . . Overloaded Fab Kills . | . . . . . . Hacking | -11 -10 -10 -10 -9 -9 --------- Run | Yrd Mat Min Sub Rec Scr Machines Accessed 23 | . 8 . 1 10 4 Terminals 12 | . 7 . . 5 . Fabricators . | . . . . . . Repair Stations . | . . . . . . Recycling Units 6 | . 1 . . 5 . Scanalyzers . | . . . . . . Garrison Access . | . . . . . . Total Hacks 95 | . 37 . 4 38 16 Successful 69 | . 26 . 4 23 16 Failed 25 | . 10 . . 15 . Catastrophic . | . . . . . . Database Lockouts 1 | . 1 . . . . Manual 48 | . 28 . . 20 . Terminals 61 | . 35 . . 26 . Fabricators . | . . . . . . Repair Stations . | . . . . . . Recycling Units 14 | . 2 . . 12 . Scanalyzers . | . . . . . . Garrison Access . | . . . . . . Terminal Hacks 40 | . 13 . 4 7 16 Record 19 | . . . 4 . 15 Part Schematic 6 | . 3 . . 3 . Robot Analysis 3 | . 2 . . 1 . Prototype ID Bank 1 | . . . . 1 . Branch Access Points 1 | . 1 . . . . Terminal Index 2 | . 1 . . 1 . Unreport Threat 1 | . 1 . . . . Locate Traps 3 | . 3 . . . . Hauler Manifests 1 | . 1 . . . . Zone Layout 2 | . 1 . . 1 . Derelict Proto ID Bank 1 | . . . . . 1 Fabricator Hacks . | . . . . . . Repair Station Hacks . | . . . . . . Recycling Unit Hacks 6 | . 1 . . 5 . Report Inventory 5 | . 1 . . 4 . Retrieve Components 1 | . . . . 1 . Scanalyzer . | . . . . . . Garrison Access Hacks . | . . . . . . Unauthorized Hacks 23 | . 12 . . 11 . Terminals 17 | . 11 . . 6 . Track 1 | . 1 . . . . Assimilate 1 | . 1 . . . . Botnet 3 | . 2 . . 1 . Operators 1 | . 1 . . . . Skim 11 | . 6 . . 5 . Fabricators . | . . . . . . Repair Stations . | . . . . . . Recycling Units 6 | . 1 . . 5 . Tunnel 6 | . 1 . . 5 . Scanalyzers . | . . . . . . Garrison Access . | . . . . . . Data Cores Recovered . | . . . . . . Used . | . . . . . . Hacking Detections 12 | . 7 . . 5 . Full Trace Events . | . . . . . . Feedback Events . | . . . . . . Feedback Blocked . | . . . . . . Robot Schematics Acquired . | . . . . . . Robots Built . | . . . . . . Authchips . | . . . . . . Time . | . . . . . . Total Robot Build Rating . | . . . . . . Part Schematics Acquired 6 | . 3 . . 3 . Parts Built . | . . . . . . Authchips . | . . . . . . Time . | . . . . . . Total Part Build Rating . | . . . . . . Parts Repaired . | . . . . . . Time . | . . . . . . Parts Recycled . | . . . . . . Recycled Matter . | . . . . . . Retrieved Matter . | . . . . . . Retrieved Components 1 | . . . . 1 . Parts Scanalyzed . | . . . . . . Part Schematics Acquired . | . . . . . . Parts Damaged . | . . . . . . Bothacking | -11 -10 -10 -10 -9 -9 ------------ Run | Yrd Mat Min Sub Rec Scr Used RIF Installer . | . . . . . . Robots Hacked 1 | . . . . . 1 Non-combat . | . . . . . . Combat 1 | . . . . . 1 Robot Hacks Applied 1 | . . . . . 1 parse_system 1 | . . . . . 1 Relay Couplers Released . | . . . . . . Fabnet Peak Effective % . | . . . . . . Robots Rewired 11 | . . . . 11 . Allies Hacked . | . . . . . . Hacks Repelled . | . . . . . . Allies | -11 -10 -10 -10 -9 -9 -------- Run | Yrd Mat Min Sub Rec Scr Total Allies 14 | . . 3 . 11 . Largest Group 11 | . . 3 3 11 10 Highest-Rated Group 156 | . . 40 40 156 151 Highest-Rated Ally 34 | . . 16 16 34 34 Total Orders 6 | . . . . . 6 FOLLOW 1 | . . . . . 1 TUNNEL 2 | . . . . . 2 PICKUP 2 | . . . . . 2 COLLECT 1 | . . . . . 1 Ally Attacks 32 | . . . 8 14 10 Total Damage 712 | . . . 118 155 439 Kills 7 | . . . 1 2 4 Allies Corrupted . | . . . . . . Allies Melted . | . . . . . . Intel | -11 -10 -10 -10 -9 -9 ------- Run | Yrd Mat Min Sub Rec Scr Robot Analysis Total 3 | . 2 . . 1 . Derelict Logs Recovered 7 | . . 2 1 . 4 Drone Launches . | . . . . . . Drone Recoveries . | . . . . . . Exploration | -11 -10 -10 -10 -9 -9 ------------- Run | Yrd Mat Min Sub Rec Scr Turns Passed 12605 | 71 1184 577 6425 1670 2678 Spaces Moved 5099 | 51 774 303 1630 602 1739 Core 1 | 1 . . . . . Treads 1390 | . 10 . 1057 322 1 Legs . | . . . . . . Wheels 3708 | 50 764 303 573 280 1738 Hover . | . . . . . . Flight . | . . . . . . Fastest Speed 50 | 50 100 120 135 135 135 Average Speed 193 | 99 113 173 279 244 136 Slowest Speed 340 | 100 240 195 340 340 340 Overloaded Moves . | . . . . . . Propulsion Burnouts . | . . . . . . Robots Hopped . | . . . . . . Cave-ins Triggered . | . . . . . . Exploration Rate (%) 63 | 3 78 48 68 94 92 Regions Visited 5 Branch Regions 4 Pre-discovered Areas 12 | . 1 1 1 8 1 Known Exits Taken 3 | . 1 1 . 1 . Unknown Exits Taken 2 | 1 . . 1 . . Scrap Searched 10 | . . 2 4 . 4 Spaces Dug 35 | . . . 35 . . Terrain Destroyed 51 | . . 9 42 . . Melee 11 | . . . 11 . . Projectile 31 | . . . 31 . . AOE 9 | . . 9 . . . Terrain Rammed . | . . . . . . Walls Destroyed . | . . . . . . Machines Disabled . | . . . . . . Actions | -11 -10 -10 -10 -9 -9 --------- Run | Yrd Mat Min Sub Rec Scr Total 7452 | 64 981 341 3245 773 2048 Wait 1829 | . 111 30 1382 40 266 Move 5094 | 50 773 302 1629 601 1739 Hop . | . . . . . . Pick Up 54 | 5 16 1 15 6 11 Fast Attach 21 | 7 10 . 1 . 3 Attach 15 | . 1 . 10 3 1 Detach 1 | . . . . 1 . Swap 31 | . 5 2 9 7 8 Drop 39 | . 13 . 5 3 18 Fire 258 | 2 52 6 182 15 1 Melee 13 | . . . 12 . 1 Ram . | . . . . . . Kick . | . . . . . . Crush . | . . . . . . Escape Stasis . | . . . . . . Rewire 97 | . . . . 97 . Trap . | . . . . . . Miscellaneous . | . . . . . . Route ------- -11/Scrapyard -10/Materials (discovered 3 exits: *Mat x2 / *Min) -10/Mines (discovered 3 exits: *Mat x2 / *Sub) -10/Subcaves (discovered 3 exits: [*Mat x2] / *Rec) -9/Recycling (discovered 2 exits: [*Fac] / *Scr) -9/Scraptown (discovered 2 exits: [*Fac x2]) History --------- Turn | Location | Event 10 | -11/Scrapyard | Discovered new exit (range 16) 72 | -11/Scrapyard | Entered Materials 310 | -10/Materials | Build established: Mutant 356 | -10/Materials | Learned Storage stockpile data 393 | -10/Materials | Identified exit to Mines 421 | -10/Materials | Learned 2 Mines zone layouts 440 | -10/Materials | Discovered new exit (range 16) 441 | -10/Materials | Learned location of 2 exits from Mines 451 | -10/Materials | Learned location of 1 exit from Storage 465 | -10/Materials | Central database locked down 482 | -10/Materials | Learned Storage security intel 682 | -10/Materials | Discovered new exit (range 15) 1256 | -10/Materials | Entered Mines 1257 | -10/Mines | Identified exit to Materials 1258 | -10/Mines | Identified exit to Subcaves 1315 | -10/Mines | Learned location of Storage (-9) 1319 | -10/Mines | Met a Derelict bent on vengeance 1381 | -10/Mines | Learned Materials emergency access door positions 1578 | -10/Mines | Assisted by bots powering up and referring to "LRC-V3" 1673 | -10/Mines | Learned Materials terminal intel 1700 | -10/Mines | Assembled infested the area 1705 | -10/Mines | Assisted by a Guerilla fighting off Assembled 1833 | -10/Mines | Entered Subcaves 1833 | -10/Subcaves | Accompanied by 3 allies 1845 | -10/Subcaves | Shifting Twisted Machinery released Flamer 1864 | -10/Subcaves | Shifting Twisted Machinery released Sub. Optics 1994 | -10/Subcaves | Lost 3 allies 2599 | -10/Subcaves | Learned 2 Materials zone layouts 3629 | -10/Subcaves | Visited Clippyterm 3635 | -10/Subcaves | Learned location of Section 7 (-2) 3635 | -10/Subcaves | Learned Factory fabricator intel 3678 | -10/Subcaves | A swath of the cavern ceiling suddenly collapsed 4076 | -10/Subcaves | Discovered new exit (range 16) 4298 | -10/Subcaves | Lost 3 parts (1n1u1w) 4345 | -10/Subcaves | Core integrity fell below 50% 4404 | -10/Subcaves | Lost 3 parts (1n1u1w) 5384 | -10/Subcaves | Build established: Derelict-Mutant 5482 | -10/Subcaves | A swath of the cavern ceiling suddenly collapsed 6299 | -10/Subcaves | Build established: Mutant 6832 | -10/Subcaves | Discovered new exit (range 2) 8252 | -10/Subcaves | Discovered new exit (range 3) 8258 | -10/Subcaves | Entered Recycling 8663 | -9/Recycling | Core integrity fell below 20% 8739 | -9/Recycling | Discovered new exit (range 15) 9306 | -9/Recycling | Build established: Commander-Mutant 9541 | -9/Recycling | Learned location of Zion (-6) 9572 | -9/Recycling | Identified exit to Scraptown 9607 | -9/Recycling | Learned 2 Materials zone layouts 9833 | -9/Recycling | Scanned before Scraplab entrance 9884 | -9/Recycling | Entered Scraplab 9928 | -9/Recycling | Entered Scraptown 9928 | -9/Scraptown | Accompanied by 10 allies 10159 | -9/Scraptown | Visited Awakened 10204 | -9/Scraptown | Visited Spacefarers 10273 | -9/Scraptown | Visited Symbiants 10305 | -9/Scraptown | Heard Great Nut preacher, LISTEN AND RECITE! 10313 | -9/Scraptown | Visited Cave Peace 10387 | -9/Scraptown | Scanned Subdweller tech in exchange for log data 10390 | -9/Scraptown | Learned location of Armory (-3) 10391 | -9/Scraptown | Learned 12 Research zone layouts 10393 | -9/Scraptown | Learned 8 Factory zone layouts 10394 | -9/Scraptown | Learned Research security intel 10898 | -9/Scraptown | Visited UFD Registry 10915 | -9/Scraptown | Visited Fellowship of the Rings 10948 | -9/Scraptown | Visited Red Mages 11171 | -9/Scraptown | Visited Science Testing Area 11297 | -9/Scraptown | Discovered new exit (range 5) 11374 | -9/Scraptown | Registered with UFD as "Gammafunk" 11407 | -9/Scraptown | Visited Curators Association 11475 | -9/Scraptown | Visited DA-N13 Charitable Foundation 11490 | -9/Scraptown | Found DCF Scrap (28 items) 11542 | -9/Scraptown | Visited Chapter 10 11901 | -9/Scraptown | Visited LU-1G1's Boring Crew 12005 | -9/Scraptown | Visited Infowarlord's Domain 12023 | -9/Scraptown | Found Active Sensor Suite 12058 | -9/Scraptown | Visited Abandonware Association 12078 | -9/Scraptown | Learned abandonware demo "REPAIR.EXE" 12133 | -9/Scraptown | Discovered new exit (range 5) 12240 | -9/Scraptown | Visited Botcube Research 12251 | -9/Scraptown | Found Botcube 12278 | -9/Scraptown | Visited Science Guys 12363 | -9/Scraptown | Visited Scrapoid Pod Storage 12376 | -9/Scraptown | Found Scrapoid Pod 12591 | -9/Scraptown | Attacked by Scraptown defenders 12606 | -9/Scraptown | Destroyed by AY-QSM(E) with Heavy Battle Rifle Last Messages --------------- 12594_ Operating Theater damaged. 12594_ Commando 2a destroyed. 12594_ RD-BNK: "RECYCLER ON THE LOSE! LET'S GO!" 12595_ Machine disabled. 12595_ VG-FLU(x) destroyed. 12595_ Machine disabled. 12595_ GB-YHE(t) destroyed. 12597_ Savior 2a destroyed. 12597_ Engineer 2b destroyed. 12597_ Acquired 46 matter. 12598_ Grenadier 2a destroyed. 12600_ Bruiser 2a suffers critical hit (Burn). 12600_ Bruiser 2a destroyed. 12600_ Machine disabled. 12601_ Transporter 2a suffers critical hit (Impale). 12601_ Transporter 2a destroyed. 12602_ Mercenary 2b destroyed. 12604_ Adv. Assault Cannon destroyed. 12606_ Med. Armor Plating destroyed. Map ----- +----------------------------------------------------+ | ##" # "## # ##??????????? | | ####### ########### ##### ## #########??????????? | | ####### ########### ##### ## #########??????????? | | """"""" """"""""""" """"" "" "##????????????????? | | "##??? ?"##????????? | | "##?? " "##????????? | | "## [[[##????????? | | "## !""##????????? | | !""??????????? | | """"""""""""""""""""""""" "## !!"##????????? | | """"""""""""""""""""""""" "## "" ##????????? | | ##### ################"" "##??"?? ##????????? | | ###########"" "##????????????????? | | X"#???????##"" "############??????? | | ? "" "" ##?????####"" "############??????? | | "" "" X"##########"" "## ##??????? | | " " ######### #"" "## ##??????? | | "" ##??????? | | "" "## =! ##??????? | | " " ######### #""EE "## !##??????? | | "" "" ""##########"" "############??????? | | "" "" #??????####"" "##############????? | | ""????????##" "##############????? | | ###########"" ## ##????? | | ##### ################"" # #### ######????? | | """""""""""""""""""""""""@ #|! ##????? | | """""""""""""""""""" """"x = % *%= # """ ##????? | | r!! = # "#" ##????? | | !%!%* # # """ ##????? | | !%!% # # ##????? | | % !%= # #### ######????? | | % E # ##????? | | """"""""" """""""""""g"" ##############????? | | #########!###########p######j ##############????? | | "##==!= = ### ## ##????????????????? | | ""###!![== ###" #### ##????????????????? | | "[###!]! *[ ###"" ### ##????????????????? | | ""###*%[]= % ###""" ### ##????????????????? | | "##!*/##* =###"" " ### #############?????? | | ""###*=*## ###"""" ### #############?????? | | "*##############"" ### # ?????? | | ""##############"" ### ## ?????? | | "##?????????## " #### # ?????? | | #####?????????##""""""""""## # ?????? | | # ###?????????############## # ?????? | | ############################ #############?????? | | ############################ #############?????? | | ""##"""##"""##"""##"""##"|"# """"##????????????? | | ""##|""##" "##"""##"" ##" # "" "##????????????? | | "##????????????? | +----------------------------------------------------+ Best States ------------- Heat Dissipation 25 Energy Generation 16 Energy Capacity 290 Matter Stores 300 Matter Capacity 300 Sight Range 16 Robot Scan Range 14 Terrain Scan Density 10 Armor Coverage 225 Evasion (%) 40 Recoil Reduction 2 Defensive Hacking 11 Authchip Count 1 Trap Extractor Capacity 4 Item Schematics ----------------- Hcp. Storage Unit | -10/Materials | Hacked Huge Storage Unit | -10/Materials | Hacked Cargo Storage Unit | -10/Materials | Hacked Hvy. Assault Rifle | -9/Recycling | Hacked Particle Gun | -9/Recycling | Hacked Recoil Stabilizer | -9/Recycling | Hacked Robot Schematics ------------------ None Fabricated ------------ Nothing Alien Tech Used ----------------- None Achievements -------------- None Challenges ------------ None Game ------ Seed PulseSkeletonGreatsword Manual? 0 Play Time 01:07:48 Cumulative 476.5 hours Start 2024.08.15 @ 15:10:01 End 2024.08.15 @ 16:20:06 Sessions 1 Manual Loads 0 Difficulty Rogue Special Mode None Game No. 181 Rogue 178 Adventurer 3 Explorer 0 Win Type - Total 7 Types 4/1/0/1/0/1/0/0/0 Lore% 68 Gallery% 85 Achievement% 86 Wizard Run 0 Options --------- Layout 1 ASCII 0 Keyboard 0 Movement Numpad Keybinds 0 Fullscreen 2 Font 24/Smallcaps Map View 50x35 Zoom Use 0% Tactical HUD 1 Map Filters NONE Filters NONE Steam 1 RUN: a8a13fdc-f2e2-4a65-b1e5-ddcddec8ee67